bitfinex-derivatives/quotes_SOLF0:USTF0_20241025
["timestamp","ask_amount","ask_price","bid_price","bid_amount"]
[1729843237283,2.5499,172.14,172.03,5.08]
[1729843237577,0.99473686,172.13,172.03,5.08]
[1729843238484,2.9065,172.1,172.03,5.08]
[1729843238789,2.5499,172.14,172.04,2.9075]
[1729843238981,0.99494794,172.13,172.04,2.9075]
[1729843239185,0.99494794,172.13,172.03,5.08]
[1729843239385,2.5499,172.14,172.03,5.08]
[1729843239386,2.5499,172.14,172.06,2.9072]
[1729843239686,2.9063,172.12,172.04,2.4631]
[1729843239890,2.9063,172.12,172.04,3.7006]
[1729843240092,2.9063,172.12,172.06,2.9071]
[1729843240280,342.08,172.24,172.04,3.7006]
[1729843240480,3.7477,172.22,172.1,2.9065]
[1729843240786,2.9051,172.19,172.11,5.08]
[1729843240979,3.7477,172.22,172.11,5.08]
[1729843240980,0.99524779,172.21,172.11,5.08]
[1729843241180,0.99525777,172.18,172.11,5.08]
[1729843241391,2.9059,172.14,172.11,5.08]
[1729843241785,3.7477,172.22,172.11,5.08]
[1729843242087,2.9055,172.16,172.11,5.08]
[1729843243190,2.906,172.14,172.04,66.5206]
[1729843243387,8.7277,172.22,172.05,4.98]
[1729843243593,0.99524409,172.21,172.05,4.98]
[1729843243889,3.7477,172.22,172.04,66.5206]
[1729843243890,0.99517761,172.2,172.04,66.5206]
[1729843244085,0.99517761,172.2,172.05,4.98]
[1729843244282,2.9058,172.15,172.08,2.9069]
[1729843244484,2.9058,172.15,172.04,66.5206]
[1729843244485,2.9058,172.15,172.09,4.98]
[1729843245491,4.98,172.21,172.09,4.98]
[1729843245696,2.9059,172.14,172.09,7.8867]
[1729843246298,4.98,172.21,172.09,7.8867]
[1729843246600,2.9059,172.14,172.09,7.8867]
[1729843246989,4.98,172.21,172.08,2.9069]
[1729843247297,4.98,172.21,172.09,4.98]
[1729843247595,2.9062,172.13,172.1,4.98]
[1729843248892,4.98,172.21,172.09,4.98]
[1729843248893,2.9065,172.11,172.09,4.98]
[1729843249095,4.98,172.21,172.04,1.2375]
[1729843249096,4.98,172.17,172.04,1.2375]
[1729843249398,2.9072,172.06,172.03,4.98]
[1729843249598,4.98,172.13,172.03,4.98]
[1729843249799,1.2902,172.12,172.03,4.98]
[1729843250394,1.2902,172.12,171.97,1.2888]
[1729843250596,1.2902,172.12,171.98,4.98]
[1729843251101,1.2902,172.12,172.01,2.9079]
[1729843251102,2.9072,172.07,172.01,2.9079]
[1729843251400,2.9072,172.07,172.02,4.98]
[1729843251898,2.9072,172.07,172.02,7.8878]
[1729843252996,2.9074,172.06,172.02,4.98]
[1729843253897,1.2902,172.12,172.02,7.8878]
[1729843254098,1.2902,172.12,172.02,4.98]
[1729843254502,2.4736,172.15,172.06,2.9072]
[1729843254703,2.4736,172.15,172.07,4.98]
[1729843254996,2.9065,172.11,172.07,4.98]
[1729843255597,2.4736,172.15,172.03,2.3655]
[1729843255801,2.4736,172.15,172.06,4.98]
[1729843256696,2.9069,172.09,172.06,4.98]
[1729843259309,2.4736,172.15,172.03,2.3655]
[1729843259507,2.4736,172.15,172.04,4.98]
[1729843259508,2.907,172.08,172.04,4.98]
[1729843259704,2.4736,172.15,172.04,4.98]
[1729843259905,0.99493456,172.14,172.04,4.98]
[1729843260103,2.907,172.08,172.04,4.98]
[1729843260306,2.4736,172.15,172.04,4.98]
[1729843260503,2.907,172.08,172.04,4.98]
[1729843260914,2.4736,172.15,172.04,4.98]
[1729843261114,2.907,172.08,172.03,2.3655]
[1729843261309,2.4736,172.15,172.03,2.3655]
[1729843261507,0.99570565,172.14,172.04,4.98]
[1729843261815,4.98,172.13,171.98,2.442]
[1729843262015,3.90711819,172.12,172.01,2.908]
[1729843262317,2.9072,172.07,172.01,2.908]
[1729843263014,2.9069,172.08,172.03,2.9077]
[1729843263214,7.4536,172.15,172.03,4.98]
[1729843263408,0.99581805,172.14,172.03,4.98]
[1729843263607,2.9064,172.12,172.06,2.9072]
[1729843263809,2.4736,172.15,172.07,4.98]
[1729843264213,2.9067,172.1,172.07,4.98]
[1729843264609,2.4736,172.15,171.98,2.442]
[1729843264811,0.99565472,172.14,171.99,4.98]
[1729843265313,0.99565472,172.14,172.0,4.98]
[1729843266116,0.99565472,172.14,172.02,2.9078]
[1729843266719,2.9072,172.07,172.02,2.9078]
[1729843267115,2.9065,172.11,172.02,2.9078]
[1729843267312,2.4736,172.15,171.98,2.442]
[1729843267313,4.98,172.12,171.98,2.442]
[1729843267521,1.2143,172.11,171.99,4.98]
[1729843268019,1.2143,172.11,172.0,2.9082]
[1729843268712,1.2143,172.11,171.99,4.98]
[1729843268914,1.2143,172.11,172.0,4.98]
[1729843269322,1.2143,172.11,171.98,4.98]
[1729843269323,2.9082,172.01,171.98,4.98]
[1729843270009,4.98,172.08,171.98,4.98]
[1729843270319,2.9078,172.03,171.98,4.98]
[1729843270912,2.9075,172.05,171.99,2.9083]
[1729843271128,4.98,172.08,171.98,4.98]
[1729843271322,6.1943,172.11,171.98,4.98]
[1729843271714,0.99571377,172.1,171.98,4.98]
[1729843272215,2.9077,172.03,171.98,4.98]
[1729843272711,2.9081,172.01,171.98,4.98]
[1729843273123,9.14447343,172.11,171.98,4.98]
[1729843273430,2.908,172.02,171.98,4.98]
[1729843273920,4.94,172.07,171.98,4.98]
[1729843274119,2.9082,172.01,171.98,4.98]
[1729843274926,2.9079,172.02,171.98,4.98]
[1729843275926,1.2143,172.11,171.98,4.98]
[1729843276120,5.93489018,172.1,171.98,4.98]
[1729843276314,4.94,172.1,171.98,4.98]
[1729843276925,7.88971096,172.1,171.98,4.98]
[1729843277114,3.51728622,172.09,171.98,4.98]
[1729843277320,2.9078,172.03,171.98,4.98]
[1729843278924,4.94,172.02,171.83,2.93687649]
[1729843279126,6.189,172.01,171.84,3.7666]
[1729843279328,6.189,172.01,171.87,2.9103]
[1729843279329,2.9092,171.95,171.87,2.9103]
[1729843279524,4.94,171.97,171.85,4.94]
[1729843280421,4.94,171.97,171.85,7.89865084]
[1729843280622,2.9087,171.98,171.85,7.89865084]
[1729843280818,1.249,172.01,171.85,4.94]
[1729843281017,1.249,172.01,171.86,2.84776691]
[1729843281227,2.9083,172.0,171.93,2.9094]
[1729843281426,1.249,172.01,171.93,4.94]
[1729843281628,2.499,172.02,171.93,4.94]
[1729843281929,5.4069,172.02,171.93,4.94]
[1729843282126,4.94,172.05,171.93,4.94]
[1729843282719,4.94,172.07,171.93,4.94]
[1729843282923,4.94,172.07,171.94,3.7558]
[1729843283125,2.9079,172.02,171.96,2.9089]
[1729843283331,2.9079,172.02,171.97,4.94]
[1729843285019,2.4734,172.08,171.97,4.94]
[1729843285628,2.9076,172.04,171.98,2.9085]
[1729843285836,2.4734,172.08,171.97,4.94]
[1729843286337,2.9079,172.03,171.97,4.94]
[1729843287431,2.4734,172.08,171.97,4.94]
[1729843288229,2.908,172.02,171.97,4.94]
[1729843288728,4.94,172.06,171.94,3.7558]
[1729843288932,2.9084,172.0,171.95,4.94]
[1729843289133,2.9084,172.0,171.94,7.4775]
[1729843289629,2.9084,172.0,171.94,10.3867]
[1729843289836,2.9081,172.01,171.94,7.4775]
[1729843291231,2.9079,172.02,171.94,7.4775]
[1729843291440,4.94,172.05,171.94,7.4775]
[1729843292141,2.4734,172.08,171.94,7.4775]
[1729843292341,4.94,172.07,171.94,7.4775]
[1729843292741,0.99268399,172.06,171.95,2.9091]
[1729843293538,2.9087,171.98,171.93,4.94]
[1729843293837,4.94,172.03,171.93,4.94]
[1729843294054,2.9088,171.97,171.93,4.94]
[1729843294341,6.2239,172.02,171.91,4.94]
[1729843294541,1.1862,172.01,171.91,4.94]
[1729843294738,2.909,171.96,171.91,4.94]
[1729843296144,2.9094,171.94,171.91,4.94]
[1729843296343,2.9094,171.94,171.87,2.5187]
[1729843296344,1.1862,172.01,171.87,2.5187]
[1729843296552,1.1862,172.01,171.87,7.4587]
[1729843296746,1.2865,172.0,171.87,7.4587]
[1729843297243,2.9096,171.92,171.87,7.4587]
[1729843299641,2.9096,171.92,171.87,10.3691]
[1729843301449,4.94,171.97,171.87,7.4587]
[1729843301652,1.2865,172.0,171.87,7.4587]
[1729843301854,6.2265,172.0,171.87,7.4587]
[1729843302842,2.9093,171.94,171.89,2.91]
[1729843304548,2.9094,171.93,171.89,2.91]
[1729843305355,2.9094,171.93,171.87,7.4587]
[1729843305559,2.9094,171.93,171.88,2.9103]
[1729843307261,2.9096,171.92,171.88,2.9103]
[1729843307955,2.9096,171.92,171.87,7.4587]
[1729843307956,2.9096,171.92,171.87,10.3691]
[1729843308854,6.2265,172.0,171.88,4.74]
[1729843309053,2.9098,171.91,171.88,4.74]
[1729843310354,6.2265,172.0,171.88,4.74]
[1729843310964,2.9096,171.92,171.88,4.74]
[1729843311858,6.2265,172.0,171.88,4.74]
[1729843312358,2.9097,171.92,171.78,62.82]
[1729843312550,4.74,171.96,171.79,7.2115]
[1729843312857,2.9105,171.87,171.82,2.9112]
[1729843313062,2.9105,171.87,171.8,4.74]
[1729843313260,4.74,171.92,171.79,2.4715]
[1729843313566,2.9114,171.82,171.8,4.74]
[1729843314350,1.2518,171.91,171.8,4.74]
[1729843316057,0.99129118,171.9,171.8,4.74]
[1729843316263,2.9114,171.82,171.8,4.74]
[1729843316555,5.73077648,171.81,171.59,4.74]
[1729843316767,7.253,171.8,171.63,1.2752]
[1729843317061,2.9131,171.72,171.64,7.6543]
[1729843317458,4.74,171.75,171.64,4.74]
[1729843317760,2.9127,171.74,171.66,2.9138]
[1729843319762,2.9127,171.74,171.64,4.74]
[1729843319763,2.9125,171.75,171.67,2.9138]
[1729843319957,2.9125,171.75,171.68,1.2708]
[1729843320766,2.9127,171.74,171.68,1.2708]
[1729843321658,2.9128,171.73,171.68,1.2708]
[1729843322960,2.513,171.8,171.69,2.9135]
[1729843322961,2.9126,171.75,171.69,2.9135]
[1729843323158,2.9126,171.75,171.7,1.204]
[1729843323455,4.74,171.78,171.7,1.204]
[1729843323456,2.9124,171.76,171.7,1.204]
[1729843323673,4.74,171.78,171.7,1.204]
[1729843324068,2.9126,171.75,171.7,1.204]
[1729843324872,2.9127,171.74,171.7,1.204]
[1729843325756,2.9121,171.78,171.72,2.9128]
[1729843325952,7.253,171.8,171.7,1.204]
[1729843326359,2.9123,171.76,171.7,1.204]
[1729843327160,337.0,171.9,171.7,1.204]
[1729843327362,343.69700347,171.89,171.7,4.17508116]
[1729843327565,341.71279504,171.89,171.7,1.204]
[1729843327766,2.9109,171.85,171.75,2.9123]
[1729843327966,0.98949504,171.88,171.76,4.74]
[1729843328168,4.74,171.86,171.76,4.74]
[1729843328560,2.9111,171.83,171.76,4.74]
[1729843328765,4.74,171.86,171.76,4.74]
[1729843329366,3.7233,171.89,171.76,4.74]
[1729843329569,4.74,171.88,171.78,2.9119]
[1729843329874,4.74,171.88,171.77,1.2494]
[1729843331072,2.9107,171.86,171.77,4.1615]
[1729843331280,4.74,171.88,171.77,1.2494]
[1729843332380,2.9109,171.84,171.78,2.9118]
[1729843333077,2.9109,171.84,171.77,1.2494]
[1729843333989,2.9112,171.83,171.78,2.9119]
[1729843335689,2.911,171.84,171.79,2.9117]
[1729843335885,2.911,171.84,171.8,4.62]
[1729843336585,2.9111,171.83,171.8,4.62]
[1729843337190,3.7233,171.89,171.8,4.62]
[1729843337588,2.9106,171.87,171.8,4.62]
[1729843337785,3.7233,171.89,171.8,4.62]
[1729843338590,2.9109,171.85,171.8,4.62]
[1729843339091,3.7233,171.89,171.8,4.62]
[1729843339287,2.9109,171.85,171.8,4.62]
[1729843340091,3.7233,171.89,171.8,4.62]
[1729843340285,2.9111,171.83,171.8,4.62]
[1729843342584,3.7233,171.89,171.8,4.62]
[1729843342788,2.9113,171.82,171.8,4.62]
[1729843343293,2.9118,171.79,171.75,2.4731]
[1729843343595,4.62,171.86,171.75,4.62]
[1729843343893,2.9123,171.77,171.74,4.62]
[1729843344086,4.62,171.86,171.74,4.62]
[1729843344284,2.9124,171.76,171.73,4.62]
[1729843345591,2.9124,171.76,171.68,2.9135]
[1729843345794,1.2882,171.8,171.68,4.62]
[1729843345991,4.62,171.79,171.68,4.62]
[1729843347095,2.9123,171.76,171.68,4.62]
[1729843347292,4.62,171.79,171.63,3.677]
[1729843347499,4.62,171.79,171.64,4.62]
[1729843347695,4.62,171.79,171.64,7.5343]
[1729843347998,4.62,171.79,171.64,2.9143]
[1729843348193,2.9132,171.71,171.65,7.5341]
[1729843348996,4.62,171.75,171.65,7.5341]
[1729843349192,2.9133,171.7,171.65,7.5341]
[1729843349393,4.62,171.75,171.65,7.5341]
[1729843350104,2.913,171.72,171.65,7.5341]
[1729843350396,2.913,171.72,171.65,4.62]
[1729843350601,1.2882,171.8,171.65,4.62]
[1729843350802,2.913,171.73,171.65,4.62]
[1729843351302,2.913,171.72,171.67,2.9138]
[1729843351702,2.9132,171.71,171.66,2.9139]
[1729843351907,4.62,171.79,171.66,2.9139]
[1729843352102,4.62,171.79,171.65,4.62]
[1729843352313,2.9132,171.71,171.65,7.534]
[1729843354100,2.9132,171.71,171.65,4.62]
[1729843354303,2.9132,171.71,171.66,2.914]
[1729843354904,2.9126,171.75,171.7,2.9133]
[1729843355207,4.62,171.76,171.65,4.62]
[1729843355402,4.62,171.77,171.65,4.62]
[1729843355900,4.62,171.77,171.67,2.9137]
[1729843357704,4.62,171.77,171.65,4.62]
[1729843357898,4.62,171.77,171.66,4.62]
[1729843358207,4.62,171.77,171.64,4.62]
[1729843358404,4.62,171.77,171.64,7.5343]
[1729843358711,2.9128,171.74,171.64,7.5343]
[1729843358913,2.517,171.73,171.64,7.5343]
[1729843359909,1.2653,171.72,171.64,7.5343]
[1729843360302,2.9135,171.69,171.64,7.5343]
[1729843361406,2.9134,171.7,171.64,4.62]
[1729843361612,1.2653,171.72,171.64,4.62]
[1729843362912,2.914,171.67,171.64,4.62]
[1729843363103,1.2653,171.72,171.61,2.9148]
[1729843363306,2.914,171.66,171.62,4.48]
[1729843364519,2.9146,171.63,171.6,4.48]
[1729843364718,4.48,171.69,171.59,4.48]
[1729843365318,2.9149,171.63,171.59,4.48]
[1729843365713,4.48,171.69,171.59,4.48]
[1729843365714,2.9143,171.66,171.59,4.48]
[1729843365916,4.48,171.69,171.59,4.48]
[1729843366416,1.2653,171.72,171.59,4.48]
[1729843366620,4.48,171.71,171.59,4.48]
[1729843367008,2.9148,171.64,171.59,4.48]
[1729843367410,2.914,171.68,171.59,4.48]
[1729843367619,4.48,171.67,171.59,4.48]
[1729843368223,2.9151,171.62,171.59,4.48]
[1729843368517,2.9151,171.62,171.58,4.48]
[1729843370316,2.9152,171.61,171.58,4.48]
[1729843371715,2.9154,171.6,171.58,4.48]
[1729843371916,2.4821,171.66,171.58,4.48]
[1729843372317,2.4821,171.66,171.57,9.25984188]
[1729843372528,1.2593,171.65,171.57,9.25984188]
[1729843372822,1.2593,171.65,171.57,12.17564188]
[1729843372823,2.9151,171.62,171.57,12.17564188]
[1729843373825,1.2593,171.65,171.57,12.17564188]
[1729843374915,2.915,171.62,171.57,12.17564188]
[1729843376919,2.9153,171.6,171.57,9.25984188]
[1729843378712,2.9155,171.59,171.57,9.25984188]
[1729843381124,2.9156,171.58,171.57,9.25984188]
[1729843385128,4.48,171.63,171.57,9.25984188]
[1729843385924,2.9156,171.59,171.57,9.25984188]
[1729843386125,4.48,171.63,171.57,9.25984188]
[1729843387627,2.9156,171.58,171.57,9.25984188]
[1729843389433,2.9156,171.59,171.57,9.25984188]
[1729843390131,4.48,171.63,171.57,9.25984188]
[1729843390429,2.9156,171.58,171.57,9.25984188]
[1729843391729,2.9156,171.58,171.57,7.29444188]
[1729843394330,4.19378114,171.65,171.57,7.29444188]
[1729843394630,2.9155,171.59,171.57,7.29444188]
[1729843395931,2.9152,171.61,171.57,7.29444188]
[1729843396228,1.2593,171.65,171.57,7.29444188]
[1729843396436,5.6793,171.65,171.57,7.29444188]
[1729843397233,2.9152,171.61,171.57,7.29444188]
[1729843397733,5.6793,171.65,171.57,7.29444188]
[1729843398135,2.9153,171.61,171.57,7.29444188]
[1729843398322,5.6793,171.65,171.57,7.29444188]
[1729843398732,2.9154,171.6,171.57,7.29444188]
[1729843399229,2.9149,171.63,171.57,7.29444188]
[1729843399433,8.55686345,171.65,171.57,7.29444188]
[1729843399734,2.9149,171.63,171.57,7.29444188]
[1729843399935,4.13686345,171.65,171.57,7.29444188]
[1729843400131,4.42,171.64,171.57,7.29444188]
[1729843400632,2.9156,171.59,171.57,7.29444188]
[1729843402339,2.915,171.62,171.57,7.29444188]
[1729843402535,4.42,171.64,171.57,7.29444188]
[1729843403133,2.9156,171.58,171.57,7.29444188]
[1729843405637,4.42,171.64,171.57,7.29444188]
[1729843406040,2.9149,171.63,171.57,7.29444188]
[1729843406234,5.6793,171.65,171.57,7.29444188]
[1729843406641,2.9153,171.6,171.57,7.29444188]
[1729843407534,2.9152,171.61,171.57,7.29444188]
[1729843407737,2.9152,171.61,171.57,11.71444188]
[1729843409247,1.2593,171.65,171.57,11.71444188]
[1729843410147,2.9153,171.61,171.57,11.71444188]
[1729843411144,1.2593,171.65,171.57,11.71444188]
[1729843411351,2.9152,171.61,171.57,11.71444188]
[1729843411943,6.9021,171.66,171.57,11.71444188]
[1729843411944,2.915,171.62,171.57,14.63014188]
[1729843412149,5.7188,171.66,171.57,14.63014188]
[1729843412746,2.9151,171.62,171.57,14.63014188]
[1729843413356,2.9148,171.63,171.58,2.9156]
[1729843413650,4.42,171.68,171.57,11.71444188]
[1729843414949,4.42,171.68,171.58,2.9156]
[1729843415152,4.42,171.68,171.57,11.71444188]
[1729843415847,2.9145,171.65,171.57,14.63014188]
[1729843416041,4.42,171.68,171.57,14.63014188]
[1729843417546,4.42,171.68,171.58,2.9155]
[1729843417751,1.3068,171.69,171.57,11.71444188]
[1729843417946,1.2178,171.71,171.57,11.71444188]
[1729843418254,5.6378,171.71,171.57,11.71444188]
[1729843418646,2.9139,171.69,171.57,11.71444188]
[1729843419152,4.42,171.74,171.65,2.9145]
[1729843419352,2.9137,171.7,171.66,4.42]
[1729843419846,2.9138,171.69,171.66,4.42]
[1729843420754,2.9137,171.7,171.66,4.42]
[1729843420950,4.42,171.75,171.66,4.42]
[1729843421154,3.6123,171.8,171.66,7.3342]
[1729843421350,2.9133,171.72,171.66,4.42]
[1729843421755,2.9133,171.72,171.67,3.7231]
[1729843422352,2.9133,171.72,171.67,6.6372]
[1729843423143,4.42,171.77,171.67,3.7231]
[1729843423344,2.9134,171.71,171.67,3.7231]
[1729843423953,4.42,171.77,171.67,3.7231]
[1729843424153,2.9136,171.7,171.67,3.7231]
[1729843424352,2.9136,171.7,171.67,1.2784]
[1729843424754,2.9136,171.7,171.67,5.6584]
[1729843425358,2.9136,171.7,171.67,4.38]
[1729843425557,4.38,171.76,171.67,4.38]
[1729843425854,2.9138,171.69,171.67,4.38]
[1729843427658,2.9137,171.7,171.67,4.38]
[1729843428060,3.6123,171.8,171.68,2.9139]
[1729843428260,5.36959807,171.79,171.67,4.38]
[1729843428560,2.9134,171.71,171.67,4.38]
[1729843428751,2.9134,171.71,171.67,7.294]
[1729843429757,4.38,171.79,171.67,7.294]
[1729843429956,2.9133,171.72,171.67,7.294]
[1729843430663,2.9133,171.72,171.68,2.9139]
[1729843430961,2.9133,171.72,171.68,6.6719]
[1729843432861,4.38,171.79,171.68,6.6719]
[1729843433061,2.9135,171.71,171.68,6.6719]
[1729843434064,2.9138,171.69,171.68,1.2444]
[1729843434261,2.9138,171.69,171.68,5.6244]
[1729843434459,4.38,171.79,171.68,5.6244]
[1729843434661,0.98952326,171.78,171.68,5.6244]
[1729843435360,2.9136,171.7,171.68,5.6244]
[1729843435862,2.9144,171.66,171.64,4.38]
[1729843436054,4.38,171.75,171.63,4.38]
[1729843436260,1.3075,171.72,171.61,4.38]
[1729843436570,6.9148,171.71,171.61,4.38]
[1729843436960,2.9149,171.63,171.61,4.38]
[1729843437464,9.88295777,171.71,171.61,4.38]
[1729843437662,2.9148,171.63,171.59,1.2822]
[1729843440368,2.9145,171.65,171.59,1.2822]
[1729843441271,2.9147,171.64,171.6,2.9153]
[1729843443768,2.9147,171.64,171.59,4.1976]
[1729843443974,4.38,171.67,171.58,6.903]
[1729843444176,2.9153,171.61,171.58,4.38]
[1729843444475,4.38,171.67,171.57,11.67444188]
[1729843444669,2.9152,171.61,171.57,11.67444188]
[1729843445774,4.38,171.67,171.57,11.67444188]
[1729843445972,2.915,171.62,171.57,14.59014188]
[1729843446174,2.915,171.62,171.57,11.67444188]
[1729843446573,2.915,171.62,171.58,2.9156]
[1729843447183,4.38,171.67,171.57,15.78584188]
[1729843447879,2.9149,171.63,171.57,15.78584188]
[1729843448382,2.9149,171.63,171.57,13.97044188]
[1729843448576,4.38,171.67,171.58,4.38]
[1729843450174,2.915,171.62,171.58,4.38]
[1729843450380,5.50295777,171.71,171.58,4.38]
[1729843450578,5.36952131,171.7,171.58,4.38]
[1729843450775,2.9148,171.64,171.58,4.38]
[1729843450974,4.38,171.7,171.59,2.9153]
[1729843451176,2.9142,171.67,171.58,4.38]
[1729843451475,4.38,171.7,171.58,7.2955]
[1729843451975,4.38,171.7,171.59,2.9155]
[1729843452172,4.38,171.7,171.58,4.38]
[1729843452569,4.38,171.7,171.59,2.9153]
[1729843452971,2.9147,171.64,171.59,2.9153]
[1729843454984,2.9148,171.63,171.59,2.9153]
[1729843456682,2.915,171.62,171.59,2.9153]
[1729843457979,5.50295777,171.71,171.59,2.9153]
[1729843458179,4.32,171.7,171.59,2.9153]
[1729843458677,4.32,171.7,171.58,4.38]
[1729843458873,2.9148,171.63,171.6,2.9153]
[1729843459185,2.9148,171.63,171.58,4.38]
[1729843459684,2.9148,171.63,171.59,2.9155]
[1729843461281,4.32,171.7,171.58,4.32]
[1729843461889,2.915,171.62,171.58,4.32]
[1729843462390,4.32,171.7,171.58,4.32]
[1729843462688,2.9151,171.62,171.58,4.32]
[1729843463091,4.32,171.7,171.58,4.32]
[1729843463289,2.9152,171.61,171.58,4.32]
[1729843464090,2.9154,171.6,171.58,4.32]
[1729843464299,4.32,171.7,171.57,7.29444188]
[1729843464483,0.98906113,171.69,171.57,11.61444188]
[1729843464883,2.9154,171.6,171.57,11.61444188]
[1729843466884,2.9156,171.58,171.57,7.29444188]
[1729843478798,2.9154,171.6,171.57,7.29444188]
[1729843479898,5.5937,171.64,171.57,7.29444188]
[1729843480199,2.9155,171.59,171.57,7.29444188]
[1729843480795,2.9156,171.58,171.57,7.29444188]
[1729843482899,2.5119,171.65,171.57,7.29444188]
[1729843483100,4.32,171.64,171.57,7.29444188]
[1729843484106,2.9156,171.59,171.57,7.29444188]
[1729843485702,4.32,171.64,171.57,7.29444188]
[1729843486306,2.9156,171.58,171.57,7.29444188]
[1729843486801,2.9153,171.6,171.57,7.29444188]
[1729843490307,2.9156,171.58,171.57,7.29444188]
[1729843512023,2.9156,171.58,171.57,5.33004188]
[1729843512218,2.9156,171.58,171.57,4.35614188]
[1729843518431,2.9156,171.58,171.57,1.08114188]
[1729843519021,7.1556,171.58,171.57,1.08114188]
[1729843521726,7.1556,171.58,171.33,62.98]
[1729843521727,4.24,171.58,171.33,62.98]
[1729843521921,2.9173,171.49,171.37,6.7876]
[1729843522121,2.9173,171.49,171.38,4.18092108]
[1729843522322,2.9173,171.49,171.38,1.2121]
[1729843522922,2.9173,171.49,171.41,2.9185]
[1729843523119,2.9173,171.49,171.42,4.24]
[1729843523525,2.9173,171.49,171.43,1.3038]
[1729843524234,2.9173,171.49,171.43,4.222]
[1729843524730,2.9171,171.5,171.43,1.3038]
[1729843524937,4.24,171.52,171.43,4.222]
[1729843527732,2.9173,171.49,171.43,4.222]
[1729843527932,4.24,171.52,171.43,4.222]
[1729843529331,2.9173,171.48,171.43,4.222]
[1729843530634,2.9175,171.47,171.43,4.222]
[1729843532843,1.2339,171.57,171.43,1.3038]
[1729843533035,4.24,171.55,171.44,2.4604]
[1729843534137,2.917,171.51,171.47,2.9174]
[1729843534333,2.917,171.51,171.47,7.1574]
[1729843535837,4.24,171.58,171.47,4.24]
[1729843536138,4.24,171.59,171.47,4.24]
[1729843536341,4.24,171.59,171.51,2.9167]
[1729843536543,4.24,171.59,171.51,7.1567]
[1729843536748,2.9161,171.56,171.51,7.1567]
[1729843537640,4.24,171.59,171.51,4.24]
[1729843537838,4.24,171.6,171.51,4.24]
[1729843538238,2.9165,171.53,171.51,4.24]
[1729843538438,4.24,171.6,171.51,4.24]
[1729843538739,2.9165,171.53,171.51,4.24]
[1729843539347,7.11499329,171.6,171.47,7.1575]
[1729843539348,2.9168,171.52,171.47,7.1575]
[1729843540342,2.917,171.51,171.47,4.24]
[1729843540545,4.24,171.56,171.47,4.24]
[1729843540939,2.9167,171.52,171.47,7.1574]
[1729843541140,4.24,171.56,171.47,4.24]
[1729843541442,2.9169,171.51,171.47,4.24]
[1729843541837,4.24,171.56,171.46,7.1577]
[1729843542342,2.917,171.51,171.46,7.1577]
[1729843542939,2.917,171.51,171.46,2.9177]
[1729843543143,2.9173,171.49,171.45,4.24]
[1729843544349,2.9173,171.49,171.45,2.9178]
[1729843544851,4.24,171.56,171.45,2.9178]
[1729843545052,2.9174,171.48,171.45,2.9178]
[1729843545249,1.2714,171.58,171.45,2.9178]